{"text_format":"3","workbook":"xlsx","n_sheets":7,"sheets":["Lunedì","Martedì","Mercoledì","Giovedì","Venerdì","Sabato","Domenica"],"not_rendered":{"defined_names":21},"read":"whole","date_system":"1900"}

{"sheet":"Lunedì","index":0,"n_rows":10,"n_cols":13,"rows_kept":10,"merged":[[1,1,1,4],[1,8,1,9],[1,10,1,12],[2,1,2,4],[2,8,2,9],[2,10,2,12]]}
[]
[null,"PIANIFICAZIONE DEI TURNI",{"$nulls":6},"Per la settimana: ",null,"Data"]
[null,"Lunedì",{"$nulls":6},"Nome reparto: ",null,"Nome"]
[]
[null,"Dipendente","7:00","8:00","9:00","10:00","11:00","12.00","13:00","14:00","15:00","Malattia?","Totale"]
[null,"Nome 1","Manager","Manager","Manager","Manager","Manager","Manager","Manager","Manager","Manager",null,{"$f":"COUNTIF(Lunedì[[#This Row],[7:00]:[15:00]],\"*\")","v":9}]
[null,"Nome 2",null,"Cassiere","Cassiere","Cassiere","Cassiere",{"$nulls":5},{"$f":"COUNTIF(Lunedì[[#This Row],[7:00]:[15:00]],\"*\")","v":4}]
[null,"Nome 3",null,"Reception","Reception","Reception","Reception","Reception","Reception","Reception",null,null,{"$f":"COUNTIF(Lunedì[[#This Row],[7:00]:[15:00]],\"*\")","v":7}]
[null,"Nome 4",null,"Reception","Reception","Reception","Reception","Reception","Reception","Reception",null,null,{"$f":"COUNTIF(Lunedì[[#This Row],[7:00]:[15:00]],\"*\")","v":7}]
[null,"Nome 5",{"$nulls":9},"Malattia",{"$f":"COUNTIF(Lunedì[[#This Row],[7:00]:[15:00]],\"*\")","v":0}]

{"sheet":"Martedì","index":1,"n_rows":10,"n_cols":13,"rows_kept":10,"merged":[[1,1,1,4],[1,8,1,9],[1,10,1,12],[2,1,2,4],[2,8,2,9],[2,10,2,12]]}
[]
[null,"PIANIFICAZIONE DEI TURNI",{"$nulls":6},"Per la settimana: ",null,"Data"]
[null,"Martedì",{"$nulls":6},"Nome reparto: ",null,"Nome"]
[]
[null,"Dipendente","7:00","8:00","9:00","10:00","11:00","12.00","13:00","14:00","15:00","Malattia?","Totale"]
[null,"Nome 1","Manager","Manager","Manager","Manager","Manager","Manager","Manager","Manager","Manager",null,{"$f":"COUNTIF(Martedì[[#This Row],[7:00]:[15:00]],\"*\")","v":9}]
[null,"Nome 2",null,"Cassiere","Cassiere","Cassiere","Cassiere",{"$nulls":5},{"$f":"COUNTIF(Martedì[[#This Row],[7:00]:[15:00]],\"*\")","v":4}]
[null,"Nome 3",null,"Reception","Reception","Reception","Reception","Reception","Reception","Reception",null,null,{"$f":"COUNTIF(Martedì[[#This Row],[7:00]:[15:00]],\"*\")","v":7}]
[null,"Nome 4",null,"Reception","Reception","Reception","Reception","Reception","Reception","Reception",null,null,{"$f":"COUNTIF(Martedì[[#This Row],[7:00]:[15:00]],\"*\")","v":7}]
[null,"Nome 5",{"$nulls":9},"Malattia",{"$f":"COUNTIF(Martedì[[#This Row],[7:00]:[15:00]],\"*\")","v":0}]

{"sheet":"Mercoledì","index":2,"n_rows":10,"n_cols":13,"rows_kept":10,"merged":[[1,1,1,4],[1,8,1,9],[1,10,1,12],[2,1,2,4],[2,8,2,9],[2,10,2,12]]}
[]
[null,"PIANIFICAZIONE DEI TURNI",{"$nulls":6},"Per la settimana: ",null,"Data"]
[null,"Mercoledì",{"$nulls":6},"Nome reparto: ",null,"Nome"]
[]
[null,"Dipendente","7:00","8:00","9:00","10:00","11:00","12.00","13:00","14:00","15:00","Malattia?","Totale"]
[null,"Nome 1","Manager","Manager","Manager","Manager","Manager","Manager","Manager","Manager","Manager",null,{"$f":"COUNTIF(Mercoledì[[#This Row],[7:00]:[15:00]],\"*\")","v":9}]
[null,"Nome 2",null,"Cassiere","Cassiere","Cassiere","Cassiere",{"$nulls":5},{"$f":"COUNTIF(Mercoledì[[#This Row],[7:00]:[15:00]],\"*\")","v":4}]
[null,"Nome 3",null,"Reception","Reception","Reception","Reception","Reception","Reception","Reception",null,null,{"$f":"COUNTIF(Mercoledì[[#This Row],[7:00]:[15:00]],\"*\")","v":7}]
[null,"Nome 4",null,"Reception","Reception","Reception","Reception","Reception","Reception","Reception",null,null,{"$f":"COUNTIF(Mercoledì[[#This Row],[7:00]:[15:00]],\"*\")","v":7}]
[null,"Nome 5",{"$nulls":9},"Malattia",{"$f":"COUNTIF(Mercoledì[[#This Row],[7:00]:[15:00]],\"*\")","v":0}]

{"sheet":"Giovedì","index":3,"n_rows":10,"n_cols":13,"rows_kept":10,"merged":[[1,1,1,4],[1,8,1,9],[1,10,1,12],[2,1,2,4],[2,8,2,9],[2,10,2,12]]}
[]
[null,"PIANIFICAZIONE DEI TURNI",{"$nulls":6},"Per la settimana: ",null,"Data"]
[null,"Giovedì",{"$nulls":6},"Nome reparto: ",null,"Nome"]
[]
[null,"Dipendente","7:00","8:00","9:00","10:00","11:00","12.00","13:00","14:00","15:00","Malattia?","Totale"]
[null,"Nome 1","Manager","Manager","Manager","Manager","Manager","Manager","Manager","Manager","Manager",null,{"$f":"COUNTIF(Giovedì[[#This Row],[7:00]:[15:00]],\"*\")","v":9}]
[null,"Nome 2",null,"Cassiere","Cassiere","Cassiere","Cassiere",{"$nulls":5},{"$f":"COUNTIF(Giovedì[[#This Row],[7:00]:[15:00]],\"*\")","v":4}]
[null,"Nome 3",null,"Reception","Reception","Reception","Reception","Reception","Reception","Reception",null,null,{"$f":"COUNTIF(Giovedì[[#This Row],[7:00]:[15:00]],\"*\")","v":7}]
[null,"Nome 4",null,"Reception","Reception","Reception","Reception","Reception","Reception","Reception",null,null,{"$f":"COUNTIF(Giovedì[[#This Row],[7:00]:[15:00]],\"*\")","v":7}]
[null,"Nome 5",{"$nulls":9},"Malattia",{"$f":"COUNTIF(Giovedì[[#This Row],[7:00]:[15:00]],\"*\")","v":0}]

{"sheet":"Venerdì","index":4,"n_rows":10,"n_cols":13,"rows_kept":10,"merged":[[1,1,1,4],[1,8,1,9],[1,10,1,12],[2,1,2,4],[2,8,2,9],[2,10,2,12]]}
[]
[null,"PIANIFICAZIONE DEI TURNI",{"$nulls":6},"Per la settimana: ",null,"Data"]
[null,"Venerdì",{"$nulls":6},"Nome reparto: ",null,"Nome"]
[]
[null,"Dipendente","7:00","8:00","9:00","10:00","11:00","12.00","13:00","14:00","15:00","Malattia?","Totale"]
[null,"Nome 1","Manager","Manager","Manager","Manager","Manager","Manager","Manager","Manager","Manager",null,{"$f":"COUNTIF(Venerdì[[#This Row],[7:00]:[15:00]],\"*\")","v":9}]
[null,"Nome 2",null,"Cassiere","Cassiere","Cassiere","Cassiere",{"$nulls":5},{"$f":"COUNTIF(Venerdì[[#This Row],[7:00]:[15:00]],\"*\")","v":4}]
[null,"Nome 3",null,"Reception","Reception","Reception","Reception","Reception","Reception","Reception",null,null,{"$f":"COUNTIF(Venerdì[[#This Row],[7:00]:[15:00]],\"*\")","v":7}]
[null,"Nome 4",null,"Reception","Reception","Reception","Reception","Reception","Reception","Reception",null,null,{"$f":"COUNTIF(Venerdì[[#This Row],[7:00]:[15:00]],\"*\")","v":7}]
[null,"Nome 5",{"$nulls":9},"Malattia",{"$f":"COUNTIF(Venerdì[[#This Row],[7:00]:[15:00]],\"*\")","v":0}]

{"sheet":"Sabato","index":5,"n_rows":10,"n_cols":13,"rows_kept":10,"merged":[[1,1,1,4],[1,8,1,9],[1,10,1,12],[2,1,2,4],[2,8,2,9],[2,10,2,12]]}
[]
[null,"PIANIFICAZIONE DEI TURNI",{"$nulls":6},"Per la settimana: ",null,"Data"]
[null,"Sabato",{"$nulls":6},"Nome reparto: ",null,"Nome"]
[]
[null,"Dipendente","7:00","8:00","9:00","10:00","11:00","12.00","13:00","14:00","15:00","Malattia?","Totale"]
[null,"Nome 1","Manager","Manager","Manager","Manager","Manager","Manager","Manager","Manager","Manager",null,{"$f":"COUNTIF(Sabato[[#This Row],[7:00]:[15:00]],\"*\")","v":9}]
[null,"Nome 2",null,"Cassiere","Cassiere","Cassiere","Cassiere",{"$nulls":5},{"$f":"COUNTIF(Sabato[[#This Row],[7:00]:[15:00]],\"*\")","v":4}]
[null,"Nome 3",null,"Reception","Reception","Reception","Reception","Reception","Reception","Reception",null,null,{"$f":"COUNTIF(Sabato[[#This Row],[7:00]:[15:00]],\"*\")","v":7}]
[null,"Nome 4",null,"Reception","Reception","Reception","Reception","Reception","Reception","Reception",null,null,{"$f":"COUNTIF(Sabato[[#This Row],[7:00]:[15:00]],\"*\")","v":7}]
[null,"Nome 5",{"$nulls":9},"Malattia",{"$f":"COUNTIF(Sabato[[#This Row],[7:00]:[15:00]],\"*\")","v":0}]

{"sheet":"Domenica","index":6,"n_rows":10,"n_cols":13,"rows_kept":10,"merged":[[1,1,1,4],[1,8,1,9],[1,10,1,12],[2,1,2,4],[2,8,2,9],[2,10,2,12]]}
[]
[null,"PIANIFICAZIONE DEI TURNI",{"$nulls":6},"Per la settimana: ",null,"Data"]
[null,"Domenica",{"$nulls":6},"Nome reparto: ",null,"Nome"]
[]
[null,"Dipendente","7:00","8:00","9:00","10:00","11:00","12.00","13:00","14:00","15:00","Malattia?","Totale"]
[null,"Nome 1","Manager","Manager","Manager","Manager","Manager","Manager","Manager","Manager","Manager",null,{"$f":"COUNTIF(Domenica[[#This Row],[7:00]:[15:00]],\"*\")","v":9}]
[null,"Nome 2",null,"Cassiere","Cassiere","Cassiere","Cassiere",{"$nulls":5},{"$f":"COUNTIF(Domenica[[#This Row],[7:00]:[15:00]],\"*\")","v":4}]
[null,"Nome 3",null,"Reception","Reception","Reception","Reception","Reception","Reception","Reception",null,null,{"$f":"COUNTIF(Domenica[[#This Row],[7:00]:[15:00]],\"*\")","v":7}]
[null,"Nome 4",null,"Reception","Reception","Reception","Reception","Reception","Reception","Reception",null,null,{"$f":"COUNTIF(Domenica[[#This Row],[7:00]:[15:00]],\"*\")","v":7}]
[null,"Nome 5",{"$nulls":9},"Malattia",{"$f":"COUNTIF(Domenica[[#This Row],[7:00]:[15:00]],\"*\")","v":0}]